bitfinex/quotes_SOLUSD_20241117
["timestamp","ask_amount","ask_price","bid_price","bid_amount"]
[1731860420557,23.902374,233.73,233.67,14.9779]
[1731860420762,0.12549,233.75,233.68,11.84223365]
[1731860421270,16.11953365,233.8,233.7,11.84223365]
[1731860421652,17.95113365,233.82,233.74,11.84223365]
[1731860421857,10.3857,233.82,233.74,11.84223365]
[1731860422581,9.99726103,233.84,233.78,11.84223365]
[1731860423453,4.2763,233.85,233.78,11.84223365]
[1731860423651,4.2756,233.89,233.82,11.84223365]
[1731860423850,11.84223365,233.92,233.84,11.84223365]
[1731860424054,4.2752,233.91,233.84,11.84223365]
[1731860424360,11.84223365,233.9,233.8,11.84223365]
[1731860424556,11.84223365,233.9,233.82,11.84223365]
[1731860424868,11.84223365,233.9,233.83,4.2766]
[1731860425053,4.2752,233.91,233.84,11.84223365]
[1731860425753,11.84223365,233.96,233.86,11.84223365]
[1731860425966,18.47563365,233.98,233.9,11.84223365]
[1731860426170,22.74953365,233.98,233.9,11.84223365]
[1731860426374,22.74953365,233.98,233.88,11.84223365]
[1731860426669,0.09367462,233.97,233.84,14.9673]
[1731860426851,11.84223365,233.94,233.86,11.84223365]
[1731860427050,0.09367462,233.97,233.82,11.84223365]
[1731860427051,11.84223365,233.92,233.82,11.84223365]
[1731860427264,11.84223365,233.88,233.81,4.2768]
[1731860427492,23.902374,233.89,233.81,14.9692]
[1731860427970,23.902374,233.89,233.82,11.84223365]
[1731860429373,23.902374,233.89,233.75,15.4568]
[1731860429374,23.902374,233.89,233.8,11.84223365]
[1731860430371,23.902374,233.89,233.81,4.2769]
[1731860432860,16.11783365,233.88,233.8,22.53473365]
[1731860433063,11.84223365,233.84,233.76,11.84223365]
[1731860433269,23.776884,233.83,233.77,4.2776]
[1731860433958,23.776884,233.85,233.77,4.2776]
[1731860434359,23.776884,233.85,233.77,14.9718]
[1731860435461,23.776884,233.83,233.74,11.84223365]
[1731860436071,0.12549,233.82,233.74,11.84223365]
[1731860436578,0.12549,233.82,233.75,4.278]
[1731860437276,11.96772365,233.82,233.75,4.278]
[1731860437590,23.776884,233.81,233.75,4.278]
[1731860437766,23.776884,233.81,233.72,22.53863365]
[1731860438077,11.96772365,233.8,233.73,4.2783]
[1731860438275,11.84223365,233.77,233.72,10.6964]
[1731860438476,23.776884,233.76,233.72,10.6964]
[1731860439053,11.84223365,233.83,233.74,11.84223365]
[1731860439259,23.902374,233.82,233.74,11.84223365]
[1731860440173,28.179274,233.82,233.74,11.84223365]
[1731860440377,23.776884,233.78,233.72,10.6964]
[1731860441073,11.96772365,233.75,233.67,14.978]
[1731860441376,23.776884,233.74,233.67,14.978]
[1731860442767,23.776884,233.8,233.72,11.84223365]
[1731860442970,4.2771,233.81,233.74,11.84223365]
[1731860444167,23.902374,233.8,233.74,11.84223365]
[1731860445462,23.776884,233.82,233.75,4.278]
[1731860445661,0.12549,233.81,233.74,11.84223365]
[1731860446580,0.12549,233.81,233.74,16.12043365]
[1731860447372,0.12549,233.81,233.76,11.84223365]
[1731860447960,0.12549,233.82,233.76,11.84223365]
[1731860448167,11.84223365,233.88,233.8,11.84223365]
[1731860448366,16.11753365,233.9,233.8,11.84223365]
[1731860448571,0.09367462,233.89,233.82,11.84223365]
[1731860448776,4.2753,233.9,233.82,11.84223365]
[1731860448975,15.0551,233.92,233.84,11.84223365]
[1731860449179,4.2752,233.91,233.84,11.84223365]
[1731860449583,11.84223365,233.9,233.82,11.84223365]
[1731860449792,11.84223365,233.88,233.77,14.9714]
[1731860449970,11.84223365,233.86,233.78,11.84223365]
[1731860450470,23.902374,233.85,233.78,11.84223365]
[1731860450877,28.178674,233.85,233.78,11.84223365]
[1731860451190,4.2755,233.89,233.82,11.84223365]
[1731860451387,4.2755,233.89,233.78,10.6938]
[1731860451884,0.09367462,233.88,233.81,11.84223365]
[1731860452085,11.84223365,233.9,233.81,22.53463365]
[1731860452287,26.89733365,233.92,233.83,11.84223365]
[1731860452489,26.89733365,233.92,233.81,10.6924]
[1731860452490,26.89733365,233.92,233.85,11.84223365]
[1731860452989,11.84223365,233.92,233.85,11.84223365]
[1731860453377,16.0067,233.97,233.85,11.84223365]
[1731860453705,4.2744,233.95,233.89,11.84223365]
[1731860453995,4.2744,233.95,233.87,11.84223365]
[1731860455089,18.47803365,233.96,233.87,11.84223365]
[1731860455090,23.776884,233.92,233.87,11.84223365]
[1731860459187,23.776884,233.93,233.87,16.11793365]
[1731860459778,23.776884,233.93,233.85,26.80893365]
[1731860460180,23.776884,233.91,233.83,11.84223365]
[1731860460388,0.12549,233.9,233.83,11.84223365]
[1731860460700,0.12549,233.9,233.8,10.6924]
[1731860460701,11.84223365,233.86,233.8,10.6924]
[1731860461100,23.776884,233.85,233.8,10.6924]
[1731860461279,0.12549,233.84,233.77,11.84223365]
[1731860461475,23.776884,233.85,233.77,11.84223365]
[1731860461787,11.84223365,233.86,233.79,11.84223365]
[1731860461788,28.052984,233.86,233.79,11.84223365]
[1731860462582,0.12549,233.85,233.77,26.81393365]
[1731860462972,0.12549,233.85,233.72,6.2558]
[1731860462973,11.96772365,233.82,233.72,10.6963]
[1731860463179,11.96772365,233.82,233.72,22.53853365]
[1731860463180,23.776884,233.81,233.72,22.53853365]
[1731860463792,23.776884,233.81,233.73,4.2782]
[1731860463987,23.776884,233.79,233.72,26.81713365]
[1731860465983,11.84223365,233.84,233.76,11.84223365]
[1731860466186,0.12549,233.84,233.76,11.84223365]
[1731860467090,4.40189,233.84,233.76,16.11993365]
[1731860467491,23.776884,233.83,233.76,16.11993365]
[1731860468585,6.5489,233.91,233.82,11.84223365]
[1731860468899,6.5489,233.91,233.83,11.84223365]
[1731860469087,4.2746,233.94,233.85,11.84223365]
[1731860469485,4.2746,233.94,233.78,22.4402]
[1731860469486,11.84223365,233.91,233.83,11.84223365]
[1731860469691,4.2753,233.9,233.83,11.84223365]
[1731860470501,0.12549,233.89,233.83,11.84223365]
[1731860470810,4.2755,233.89,233.83,11.84223365]
[1731860470997,4.2755,233.89,233.81,11.84223365]
[1731860470998,0.12549,233.87,233.81,11.84223365]
[1731860471191,11.96772365,233.85,233.77,11.84223365]
[1731860471392,23.776884,233.84,233.76,4.2777]
[1731860471699,0.12549,233.83,233.76,4.2777]
[1731860472294,0.12549,233.83,233.76,14.9724]
[1731860472509,23.776884,233.84,233.81,11.84223365]
[1731860473989,0.12549,233.84,233.77,22.53643365]
[1731860474190,23.776884,233.86,233.79,11.84223365]
[1731860474413,23.776884,233.87,233.79,11.84223365]
[1731860474786,11.96772365,233.86,233.77,22.53643365]
[1731860474983,23.776884,233.85,233.77,22.53643365]
[1731860475286,0.12549,233.84,233.77,22.53643365]
[1731860475603,28.053484,233.83,233.77,10.6942]
[1731860476105,23.776884,233.81,233.74,4.2781]
[1731860476681,23.776884,233.83,233.75,11.84223365]
[1731860476907,23.776884,233.83,233.77,11.84223365]
[1731860477113,23.776884,233.83,233.75,11.84223365]
[1731860477401,23.902374,233.81,233.74,14.9737]
[1731860478310,23.776884,233.81,233.74,14.9737]
[1731860478485,23.776884,233.83,233.77,11.84223365]
[1731860478996,23.776884,233.83,233.75,11.84223365]
[1731860479302,0.12549,233.82,233.75,11.84223365]
[1731860479502,11.96772365,233.82,233.73,11.84223365]
[1731860479702,23.776884,233.8,233.73,11.84223365]
[1731860480094,23.776884,233.79,233.71,11.84223365]
[1731860480297,23.776884,233.75,233.69,10.6979]
[1731860480592,23.776884,233.73,233.65,11.84223365]
[1731860480790,0.12549,233.72,233.65,11.84223365]
[1731860480989,0.12549,233.72,233.64,10.6997]
[1731860480990,11.84223365,233.7,233.64,10.6997]
[1731860481194,23.776884,233.69,233.64,10.6997]
[1731860482110,23.776884,233.73,233.67,11.84223365]
[1731860482694,0.12549,233.72,233.65,11.84223365]
[1731860483910,0.12549,233.72,233.65,16.12203365]
[1731860484307,28.055384,233.73,233.65,16.12203365]
[1731860484508,0.1,233.85,233.65,16.12203365]
[1731860484509,6.5474,233.79,233.71,11.84223365]
[1731860484689,11.84223365,233.82,233.73,11.84223365]
[1731860485107,11.84223365,233.8,233.73,11.84223365]
[1731860485987,23.776884,233.79,233.73,16.12053365]
[1731860486189,23.776884,233.8,233.73,16.12053365]
[1731860488719,23.776884,233.8,233.75,11.84223365]
[1731860488917,0.12549,233.84,233.77,11.84223365]
[1731860489214,11.84223365,233.86,233.77,11.84223365]
[1731860490315,16.11833365,233.86,233.78,4.2775]
[1731860490620,23.776884,233.85,233.78,14.9713]
[1731860491115,23.776884,233.85,233.79,11.84223365]
[1731860492012,23.776884,233.85,233.79,16.11943365]
[1731860493417,0.12549,233.84,233.77,11.84223365]
[1731860493721,28.053084,233.85,233.77,11.84223365]
[1731860494228,28.053084,233.85,233.79,11.84223365]
[1731860495504,28.052784,233.87,233.81,11.84223365]
[1731860495709,0.12549,233.86,233.81,11.84223365]
[1731860496823,4.40159,233.86,233.81,11.84223365]
[1731860497002,23.776884,233.85,233.81,11.84223365]
[1731860497403,23.776884,233.85,233.79,16.11943365]
[1731860497621,23.776884,233.85,233.79,11.84223365]
[1731860498119,0.12549,233.84,233.79,11.84223365]
[1731860498416,0.12549,233.82,233.75,11.84223365]
[1731860499002,23.776884,233.81,233.75,11.84223365]
[1731860500208,23.776884,233.77,233.69,4.279]
[1731860500407,23.776884,233.75,233.69,4.279]
[1731860500917,11.84223365,233.78,233.69,4.279]
[1731860500918,0.12549,233.76,233.69,4.279]
[1731860501136,0.12549,233.76,233.68,10.698]
[1731860501299,0.12549,233.76,233.68,14.9773]
[1731860502205,23.776884,233.75,233.68,14.9773]
[1731860502418,11.84223365,233.83,233.74,11.84223365]
[1731860503723,0.12549,233.82,233.74,11.84223365]
[1731860503903,23.902374,233.82,233.74,11.84223365]
[1731860504519,23.776884,233.8,233.74,16.12043365]
[1731860505108,11.84223365,233.85,233.76,11.84223365]
[1731860505323,11.84223365,233.83,233.74,26.81603365]
[1731860505807,6.0309,233.87,233.76,11.84223365]
[1731860505808,11.84223365,233.85,233.76,11.84223365]
[1731860506009,11.84223365,233.85,233.74,26.81603365]
[1731860506217,11.84223365,233.81,233.74,10.6956]
[1731860506520,23.776884,233.8,233.74,14.9738]
[1731860507306,23.776884,233.8,233.74,10.6956]
[1731860507713,23.776884,233.8,233.74,14.9738]
[1731860508702,23.776884,233.8,233.7,11.84223365]
[1731860508703,11.96772365,233.79,233.7,11.84223365]
[1731860508904,23.776884,233.78,233.7,11.84223365]
[1731860509216,23.776884,233.8,233.72,11.84223365]
[1731860509522,23.902374,233.82,233.72,11.84223365]
[1731860509731,23.902374,233.82,233.74,11.84223365]
[1731860510213,23.776884,233.8,233.74,16.12043365]
[1731860512007,28.054084,233.8,233.74,4.2782]
[1731860512404,11.84223365,233.79,233.72,4.2785]
[1731860512610,23.776884,233.76,233.7,14.9762]
[1731860512823,11.84223365,233.81,233.72,11.84223365]
[1731860513028,28.179274,233.82,233.74,11.84223365]
[1731860514009,28.179274,233.82,233.74,16.12033365]
[1731860518316,0.12549,233.77,233.7,10.6974]
[1731860518519,23.902374,233.77,233.7,14.9763]
[1731860518909,4.2769,233.82,233.71,11.84223365]
[1731860518910,23.776884,233.79,233.71,11.84223365]
[1731860519220,6.0309,233.87,233.75,11.84223365]
[1731860519427,4.276,233.86,233.79,11.84223365]
[1731860520107,4.2749,233.92,233.83,11.84223365]
[1731860520512,4.2749,233.92,233.83,16.11873365]
[1731860520908,0.09367462,233.9,233.81,11.84223365]
[1731860521113,11.84223365,233.87,233.77,11.84223365]
[1731860521317,23.902374,233.84,233.75,26.81503365]
[1731860521727,23.776884,233.88,233.79,11.84223365]
[1731860522025,0.12549,233.87,233.79,11.84223365]
[1731860522511,0.12549,233.87,233.8,4.2771]
[1731860522935,11.84223365,233.85,233.77,11.84223365]
[1731860523114,23.902374,233.84,233.76,4.2778]
[1731860523518,23.776884,233.82,233.75,11.84223365]
[1731860523934,23.902374,233.84,233.77,11.84223365]
[1731860524234,0.1,233.95,233.74,30.7116]
[1731860524235,11.84223365,233.91,233.81,11.84223365]
[1731860524423,16.11733365,233.91,233.81,11.84223365]
[1731860525140,11.84223365,233.89,233.81,11.84223365]
[1731860525515,28.052684,233.88,233.81,11.84223365]
[1731860525917,23.776884,233.86,233.79,10.6932]
[1731860526734,23.776884,233.87,233.83,11.84223365]
[1731860527121,23.776884,233.87,233.81,11.84223365]
[1731860527738,23.776884,233.87,233.79,14.9705]
[1731860527739,11.84223365,233.85,233.79,10.6932]
[1731860527949,23.776884,233.84,233.79,10.6932]
[1731860528237,39.87404791,233.93,233.79,10.6932]
[1731860528238,23.776884,233.86,233.8,11.84223365]
[1731860528428,23.776884,233.88,233.8,11.84223365]
[1731860528936,23.776884,233.88,233.79,14.9705]
[1731860528937,23.776884,233.88,233.82,11.84223365]
[1731860529523,23.776884,233.9,233.84,11.84223365]
[1731860530640,28.051784,233.92,233.84,11.84223365]
[1731860530814,0.12549,233.91,233.84,11.84223365]
[1731860531330,0.12549,233.91,233.84,16.11863365]
[1731860531526,11.84223365,233.97,233.88,11.84223365]
[1731860531728,4.2738,233.98,233.9,11.84223365]
[1731860531922,11.84223365,233.95,233.85,15.7382]
[1731860532229,11.84223365,233.87,233.79,15.7382]
[1731860532421,11.84223365,233.85,233.79,15.7382]
[1731860532632,11.84223365,233.87,233.79,15.7382]
[1731860532939,11.84223365,233.89,233.79,30.7088]
[1731860533126,11.84223365,233.89,233.81,11.84223365]
[1731860533331,11.84223365,233.83,233.75,11.84223365]
[1731860533525,23.776884,233.82,233.74,26.5345]
[1731860533840,23.776884,233.84,233.79,11.84223365]
[1731860534040,23.776884,233.86,233.77,11.84223365]
[1731860534340,23.902374,233.82,233.75,11.84223365]
[1731860534636,23.902374,233.86,233.79,11.84223365]
[1731860534823,23.902374,233.86,233.77,11.84223365]
[1731860535018,0.09367462,233.85,233.77,11.84223365]
[1731860535225,0.09367462,233.85,233.75,26.81523365]
[1731860535226,23.902374,233.84,233.75,26.81523365]
[1731860535942,23.902374,233.82,233.75,22.53733365]
[1731860536239,22.15923365,233.89,233.79,11.84223365]
[1731860536423,22.15923365,233.89,233.81,11.84223365]
[1731860536818,11.84223365,233.85,233.79,10.693]
[1731860537235,16.11773365,233.89,233.81,11.84223365]
[1731860537436,16.11773365,233.89,233.79,26.81253365]
[1731860537643,11.84223365,233.87,233.79,26.81253365]
[1731860537841,16.11773365,233.89,233.79,26.81253365]
[1731860539030,28.178174,233.88,233.79,26.81253365]
[1731860541321,11.84223365,233.83,233.75,11.84223365]
[1731860541526,23.902374,233.82,233.74,38.37693365]
[1731860541939,23.902374,233.87,233.8,11.84223365]
[1731860543133,23.776884,233.86,233.78,11.84223365]
[1731860543420,23.776884,233.86,233.75,20.0]
[1731860543421,11.96772365,233.85,233.77,4.2776]
[1731860543641,11.96772365,233.85,233.74,15.8391]
[1731860543642,11.96772365,233.83,233.74,27.68133365]
[1731860543843,23.776884,233.82,233.74,27.68133365]
[1731860544142,23.776884,233.8,233.72,22.53843365]
[1731860544442,23.776884,233.78,233.72,10.6962]
[1731860544741,0.12549,233.79,233.72,26.81703365]
[1731860545321,23.776884,233.78,233.72,26.81703365]
[1731860545831,4.2771,233.81,233.72,26.81703365]
[1731860546143,0.25098,233.86,233.78,11.84223365]
[1731860546443,0.25098,233.86,233.76,11.84223365]
[1731860546640,0.12549,233.84,233.76,11.84223365]
[1731860547243,0.09367462,233.83,233.76,16.11993365]
[1731860549754,11.96772365,233.75,233.68,10.6983]
[1731860550050,23.776884,233.72,233.65,4.2797]
[1731860550227,11.96772365,233.71,233.64,26.8909]
[1731860550426,23.776884,233.7,233.64,26.8909]
[1731860550737,23.776884,233.64,233.59,10.7023]
[1731860551443,0.12549,233.61,233.53,14.9867]
[1731860551748,0.12549,233.61,233.54,11.84223365]
[1731860552128,0.12549,233.61,233.53,14.9867]
[1731860552129,0.12549,233.61,233.56,11.84223365]
[1731860553644,6.38897462,233.69,233.56,11.84223365]
[1731860553645,11.84223365,233.67,233.58,11.84223365]
[1731860553848,0.12549,233.66,233.6,11.84223365]
[1731860554153,24.027864,233.67,233.6,11.84223365]
[1731860554524,23.776884,233.68,233.62,11.84223365]
[1731860554730,23.776884,233.7,233.64,11.84223365]
[1731860554947,0.12549,233.69,233.64,11.84223365]
[1731860555127,16.12073365,233.73,233.64,11.84223365]
[1731860555326,10.6929,233.8,233.68,11.84223365]
[1731860555327,27.69613365,233.77,233.68,11.84223365]
[1731860555545,10.9419,233.74,233.68,11.84223365]
[1731860556337,23.902374,233.73,233.68,11.84223365]
[1731860557743,23.776884,233.73,233.7,11.84223365]
[1731860557946,4.2776,233.78,233.72,11.84223365]
[1731860559543,23.902374,233.77,233.72,11.84223365]
[1731860560650,15.6771,233.82,233.69,4.279]
[1731860560651,19.954,233.82,233.74,11.84223365]
[1731860560850,11.84223365,233.81,233.72,11.84223365]
[1731860561436,0.09367462,233.8,233.72,11.84223365]
[1731860561752,0.09367462,233.79,233.69,10.6976]
[1731860562057,0.09367462,233.79,233.7,11.84223365]
[1731860562753,4.52808,233.8,233.72,11.84223365]
[1731860562949,4.52808,233.8,233.69,10.6976]
[1731860562950,4.52808,233.8,233.74,11.84223365]
[1731860563748,11.84223365,233.83,233.74,11.84223365]
[1731860563749,0.12549,233.81,233.74,11.84223365]
[1731860563933,23.902374,233.81,233.74,11.84223365]
[1731860564746,4.40259,233.81,233.74,11.84223365]
[1731860564947,23.776884,233.8,233.74,11.84223365]
[1731860570243,23.776884,233.8,233.73,4.2783]
[1731860570244,23.902374,233.79,233.72,11.84223365]
[1731860570460,23.902374,233.79,233.71,10.697]
[1731860570461,0.12549,233.77,233.7,11.84223365]
[1731860570755,24.12153862,233.7,233.61,30.8659]
[1731860571061,24.12153862,233.7,233.62,11.84223365]
[1731860571853,23.902374,233.68,233.62,11.84223365]
[1731860572052,23.902374,233.68,233.62,16.12253365]
[1731860572468,23.902374,233.71,233.64,11.84223365]
[1731860572644,23.902374,233.71,233.66,11.84223365]
[1731860573555,23.776884,233.73,233.68,11.84223365]
[1731860573769,23.776884,233.73,233.66,11.84223365]
[1731860573770,0.12549,233.72,233.66,11.84223365]
[1731860573970,23.776884,233.71,233.66,11.84223365]
[1731860574359,23.776884,233.71,233.66,16.12183365]
[1731860574557,0.12549,233.72,233.66,16.12183365]
[1731860581373,0.12549,233.72,233.66,11.12183365]
[1731860584167,23.776884,233.71,233.66,6.84223365]
[1731860584349,23.776884,233.71,233.64,16.12213365]
[1731860584552,23.776884,233.71,233.64,26.82233365]
[1731860585487,0.12549,233.7,233.64,26.82233365]
[1731860585776,0.12549,233.7,233.64,14.9801]
[1731860585968,0.12549,233.7,233.62,16.12253365]
[1731860586272,0.12549,233.7,233.64,11.84223365]
[1731860587258,0.12549,233.7,233.62,22.54333365]
[1731860587259,0.12549,233.68,233.62,22.54333365]
[1731860587451,0.12549,233.68,233.62,26.82373365]
[1731860588275,0.25098,233.68,233.62,11.84223365]
[1731860588571,0.25098,233.68,233.6,4.2806]
[1731860589357,23.902374,233.66,233.6,4.2806]
[1731860589774,23.902374,233.66,233.58,26.82603365]
[1731860590867,28.182174,233.66,233.58,26.82603365]
[1731860592774,23.902374,233.64,233.58,10.7028]
[1731860593161,0.21916462,233.63,233.56,16.12363365]
[1731860593369,0.12549,233.62,233.56,16.12363365]
[1731860593675,0.21916462,233.58,233.51,4.2823]
[1731860593882,0.12549,233.57,233.5,11.84223365]
[1731860594181,0.21916462,233.56,233.5,11.84223365]
[1731860594357,23.99604862,233.55,233.49,10.7067]
[1731860594674,28.27784862,233.55,233.49,10.7067]
[1731860595284,0.12549,233.54,233.46,16.12543365]
[1731860595655,23.776884,233.56,233.5,11.84223365]
[1731860595988,0.12549,233.56,233.5,11.84223365]
[1731860596278,0.12549,233.54,233.48,11.84223365]
[1731860596479,23.776884,233.57,233.52,11.84223365]
[1731860596685,23.776884,233.57,233.55,11.84223365]
[1731860597472,18.34233365,233.64,233.55,22.54653365]
[1731860597473,6.5001,233.64,233.55,22.54653365]
[1731860597674,22.62243365,233.64,233.57,11.84223365]
[1731860597873,10.7802,233.64,233.57,11.84223365]
[1731860598166,0.09367462,233.63,233.57,11.84223365]
[1731860599065,23.99604862,233.63,233.57,11.84223365]
[1731860599270,28.27634862,233.63,233.57,11.84223365]
[1731860600185,0.09367462,233.61,233.55,11.84223365]
[1731860600369,0.21916462,233.61,233.55,11.84223365]
[1731860600570,0.12549,233.61,233.55,11.84223365]
[1731860600789,0.12549,233.61,233.57,11.84223365]
[1731860601079,23.776884,233.63,233.57,11.84223365]
[1731860601080,0.12549,233.62,233.57,11.84223365]
[1731860601488,23.776884,233.65,233.59,11.84223365]
[1731860601665,0.12549,233.65,233.59,11.84223365]
[1731860602185,0.12549,233.65,233.61,11.84223365]
[1731860602483,18.41223365,233.7,233.61,11.84223365]
[1731860602484,4.2792,233.69,233.63,11.84223365]
[1731860603681,6.57,233.7,233.63,11.84223365]
[1731860604186,10.849,233.7,233.63,11.84223365]
[1731860604367,0.09367462,233.69,233.63,11.84223365]
[1731860604573,28.11973365,233.72,233.63,11.84223365]
[1731860604774,4.2785,233.73,233.65,11.84223365]
[1731860604963,0.09367462,233.72,233.65,11.84223365]
[1731860605582,0.09367462,233.72,233.67,11.84223365]
[1731860605758,11.93590827,233.72,233.63,22.54283365]
[1731860605964,24.027864,233.69,233.61,16.12273365]
[1731860606182,0.09367462,233.68,233.59,16.12303365]
[1731860606375,23.902374,233.67,233.61,11.84223365]
[1731860606580,23.776884,233.67,233.65,11.84223365]
[1731860608274,21.8439988,233.74,233.65,11.84223365]
[1731860608465,0.12549,233.73,233.69,11.84223365]
[1731860608864,4.2778,233.77,233.69,11.84223365]
[1731860609169,0.09367462,233.76,233.69,11.84223365]
[1731860609381,16.11973365,233.78,233.69,11.84223365]
[1731860610588,16.11973365,233.78,233.7,4.2789]
[1731860610970,23.902374,233.77,233.7,4.2789]
[1731860611171,23.902374,233.77,233.71,11.84223365]
[1731860612587,11.84223365,233.8,233.65,15.9243]
[1731860612588,4.2773,233.8,233.73,11.84223365]
[1731860614099,23.902374,233.79,233.73,11.84223365]
[1731860615193,23.902374,233.79,233.75,11.84223365]
[1731860616300,4.2766,233.83,233.77,11.84223365]
[1731860616476,23.902374,233.82,233.77,11.84223365]
[1731860617597,28.179174,233.82,233.77,11.84223365]
[1731860619306,28.179174,233.82,233.79,11.84223365]
[1731860620088,23.776884,233.82,233.79,11.84223365]
[1731860620396,0.12549,233.85,233.79,11.84223365]
[1731860620606,4.2758,233.88,233.81,11.84223365]
[1731860620786,11.84223365,233.9,233.83,11.84223365]
[1731860620787,4.2754,233.9,233.83,11.84223365]
[1731860622001,23.902374,233.89,233.83,11.84223365]
[1731860623284,23.902374,233.89,233.83,16.11873365]
[1731860623975,0.09367462,233.86,233.79,11.84223365]
[1731860624182,23.902374,233.87,233.81,11.84223365]
[1731860624183,23.776884,233.87,233.81,11.84223365]
[1731860624394,23.776884,233.87,233.83,11.84223365]
[1731860624899,23.776884,233.87,233.81,11.84223365]
[1731860626892,16.11763365,233.9,233.82,4.2767]
[1731860628391,23.902374,233.89,233.81,11.84223365]
[1731860630010,23.776884,233.87,233.81,11.84223365]
[1731860630185,23.776884,233.87,233.81,16.11913365]
[1731860632185,23.776884,233.87,233.82,7.58463827]
[1731860636203,4.2744,233.95,233.86,7.58463827]
[1731860636407,11.85903827,233.95,233.86,7.58463827]
[1731860636795,4.2744,233.95,233.86,7.58463827]
[1731860637408,4.2744,233.95,233.86,11.86053827]
[1731860637621,21.3654,234.03,233.86,11.86053827]
[1731860637622,6.0312,234.02,233.88,7.58463827]
[1731860637805,20.9871,234.02,233.88,7.58463827]
[1731860638107,0.09367462,233.97,233.9,7.58463827]
[1731860638290,7.58463827,233.98,233.9,7.58463827]
[1731860639394,4.274,233.97,233.9,11.85983827]
[1731860639596,23.776884,233.96,233.9,11.85983827]
[1731860640416,6.0312,234.02,233.95,0.08213846]
[1731860640616,0.484925,234.13,234.06,16.7022]
[1731860640913,0.484925,234.13,234.12,27.58463827]
[1731860641795,0.484925,234.13,234.07,20.1]
[1731860641998,0.484925,234.13,234.12,27.58463827]
[1731860642416,0.484925,234.13,234.12,57.92319135]
[1731860642608,10.4818,234.3,234.13,20.0]
[1731860642907,10.4818,234.3,234.16,7.58463827]
[1731860643094,10.4818,234.3,234.16,27.58463827]
[1731860643808,11.85193827,234.34,234.16,32.17430289]
[1731860644188,11.85193827,234.34,234.17,20.0]
[1731860644189,4.2673,234.34,234.17,20.0]
[1731860644398,16.07347184,234.36,234.17,20.0]
[1731860644710,0.09367462,234.35,234.27,11.80657184]
[1731860644912,24.027864,234.35,234.27,11.80657184]
[1731860645102,0.484925,234.37,234.29,11.80657184]
[1731860645310,0.484925,234.37,234.35,11.80657184]
[1731860647113,0.484925,234.37,234.33,11.3740646]
[1731860648619,35.80262046,234.36,234.24,10.6726]
[1731860648909,35.80262046,234.36,234.27,11.80657184]
[1731860651318,0.12549,234.24,234.18,11.80657184]
[1731860651703,23.776884,234.27,234.18,11.80657184]
[1731860651906,0.12549,234.26,234.18,11.80657184]
[1731860652217,0.21916462,234.26,234.18,11.80657184]
[1731860652539,0.12549,234.24,234.17,11.80657184]
[1731860652819,0.12549,234.24,234.19,11.80657184]
[1731860653221,0.12549,234.24,234.17,11.80657184]
[1731860654503,23.902374,234.24,234.17,11.80657184]
[1731860658819,0.12549,234.25,234.21,11.80657184]
[1731860659000,0.25098,234.3,234.23,11.80657184]
[1731860659423,0.21916462,234.29,234.23,11.80657184]
[1731860659728,0.21916462,234.29,234.21,11.80657184]
[1731860660319,4.48736462,234.29,234.21,11.80657184]
[1731860660506,0.21916462,234.27,234.19,11.80657184]
[1731860662031,4.48776462,234.27,234.19,11.80657184]
[1731860662204,0.12549,234.27,234.23,11.80657184]
[1731860662727,23.776884,234.3,234.25,11.80657184]
[1731860662932,6.2138,234.31,234.28,11.80657184]
[1731860663222,6.2138,234.31,234.26,11.80657184]
[1731860664099,23.902374,234.3,234.24,11.80657184]
[1731860664326,23.902374,234.3,234.22,16.07587184]
[1731860666210,0.21916462,234.29,234.2,11.80657184]
[1731860666525,0.12549,234.26,234.18,22.48207184]
[1731860667228,0.12549,234.26,234.2,11.80657184]
[1731860667607,0.12549,234.28,234.22,11.80657184]
[1731860668827,0.21916462,234.27,234.2,11.80657184]
[1731860669027,0.12549,234.26,234.2,11.80657184]
[1731860669819,0.12549,234.26,234.18,22.48207184]
[1731860671027,23.902374,234.24,234.18,22.48207184]
[1731860673022,28.171474,234.24,234.18,22.48207184]
[1731860674520,0.09367462,234.23,234.18,11.80657184]
[1731860674728,0.21916462,234.23,234.16,11.80657184]
[1731860675028,23.99604862,234.19,234.12,11.80657184]
[1731860676032,23.99604862,234.17,234.12,11.80657184]
[1731860676212,23.99604862,234.17,234.1,11.80657184]